fUSD/lending_fUSD_20251225
["ID","MTS","AMOUNT","RATE_DAILY","PERIOD"]
[399810352,1766691044741,-500.0,0.00016183,2]
[399810353,1766691044751,-150.0,0.00016184,2]
[399810354,1766691044761,-150.0,0.00016192,2]
[399810355,1766691044771,-150.0,0.00016194,2]
[399810356,1766691044781,-150.0,0.00016194,2]
[399810357,1766691044791,-150.0,0.00016198,2]
[399810358,1766691044800,-5000.00169608,0.000162,5]
[399810359,1766691044810,-150.0,0.00016202,2]
[399810360,1766691044819,-150.0,0.00016214,2]
[399810361,1766691044829,-150.0,0.00016214,2]
[399810362,1766691044839,-1320.0,0.00016225,2]
[399810363,1766691044848,-150.0,0.00016226,2]
[399810364,1766691044858,-304.31974468,0.00016227,2]
[399810365,1766691044868,-150.0,0.00016228,2]
[399810366,1766691044878,-150.0,0.00016231,2]
[399810367,1766691044888,-150.0,0.00016231,2]
[399810368,1766691044898,-150.0,0.00016235,2]
[399810369,1766691044907,-150.0,0.00016236,2]
[399810370,1766691044917,-150.0,0.0001625,2]
[399810371,1766691044927,-150.0,0.00016258,2]
[399810372,1766691044936,-150.0,0.00016258,2]
[399810373,1766691044946,-150.0,0.00016258,2]
[399810374,1766691044956,-1320.0,0.00016259,2]
[399810375,1766691044966,-150.0,0.00016268,2]
[399810376,1766691044976,-150.0,0.00016271,2]
[399810377,1766691044986,-150.0,0.00016279,2]
[399810378,1766691044996,-150.0,0.00016279,2]
[399810379,1766691045006,-150.0,0.0001628,2]
[399810380,1766691045016,-150.0,0.00016289,2]
[399810381,1766691045025,-150.0,0.00016291,2]
[399810382,1766691045035,-150.0,0.000163,2]
[399810383,1766691045045,-150.0,0.00016302,2]
[399810384,1766691045054,-150.0,0.00016307,2]
[399810385,1766691045065,-150.0,0.00016307,2]
[399810386,1766691045074,-150.0,0.00016307,2]
[399810387,1766691045084,-150.0,0.00016316,2]
[399810388,1766691045093,-150.0,0.00016319,2]
[399810389,1766691045104,-150.0,0.00016324,2]
[399810390,1766691045114,-150.0,0.00016326,2]
[399810391,1766691045124,-236.57,0.00016326,2]
[399810392,1766691045134,-150.0,0.00016333,2]
[399810393,1766691045144,-150.0,0.00016347,2]
[399810394,1766691045154,-150.0,0.00016349,2]
[399810395,1766691045164,-150.0,0.0001636,2]
[399810396,1766691045174,-150.0,0.00016363,2]
[399810397,1766691045184,-150.0,0.00016366,2]
[399810398,1766691045195,-150.0,0.00016369,2]
[399810399,1766691045204,-150.0,0.00016369,2]
[399810400,1766691045214,-150.0,0.00016373,2]
[399810401,1766691045224,-150.0,0.0001638,2]
[399810402,1766691045234,-150.0,0.00016391,2]
[399810403,1766691045244,-150.0,0.00016398,2]
[399810404,1766691045254,-228.0,0.000164,2]
[399810405,1766691045264,-319.0,0.000164,2]
[399810406,1766691045274,-182.0,0.000164,2]
[399810407,1766691045283,-184.24951816,0.000164,2]
[399810408,1766691045293,-163.38,0.00016405,2]
[399810409,1766691045303,-150.0,0.00016405,2]
[399810410,1766691045312,-150.0,0.0001641,2]
[399810411,1766691045323,-150.0,0.00016413,2]
[399810412,1766691045333,-150.0,0.0001642,2]
[399810413,1766691045343,-150.0,0.0001642,2]
[399810414,1766691045353,-150.0,0.0001642,2]
[399810415,1766691045362,-150.0,0.0001642,2]
[399810416,1766691045372,-150.0,0.0001642,2]
[399810417,1766691045382,-150.0,0.00016431,2]
[399810418,1766691045392,-150.0,0.00016435,2]
[399810419,1766691045402,-1317.85,0.00016437,2]
[399810420,1766691045412,-500.0,0.00016438,2]
[399810421,1766691045425,-500.0,0.00016438,2]
[399810422,1766691045435,-500.0,0.00016438,2]
[399810423,1766691045445,-500.0,0.00016438,2]
[399810424,1766691045455,-500.0,0.00016438,2]
[399810425,1766691045465,-500.0,0.00016438,2]
[399810426,1766691045475,-500.0,0.00016438,2]
[399810427,1766691045485,-225.30360417,0.00016438,2]
[399810428,1766691045495,-500.0,0.00016438,2]
[399810429,1766691045505,-500.0,0.00016438,2]
[399810430,1766691045515,-500.0,0.00016438,2]
[399810431,1766691045524,-500.0,0.00016438,2]
[399810432,1766691045534,-500.0,0.00016438,2]
[399810433,1766691045543,-500.0,0.00016438,2]
[399810434,1766691045553,-500.0,0.00016438,2]
[399810435,1766691045563,-500.0,0.00016438,2]
[399810436,1766691045573,-500.0,0.00016438,2]
[399810437,1766691045582,-500.0,0.00016438,2]
[399810438,1766691045592,-500.0,0.00016438,2]
[399810439,1766691045602,-500.0,0.00016438,2]
[399810440,1766691045612,-500.0,0.00016438,2]
[399810441,1766691045623,-500.0,0.00016438,2]
[399810442,1766691045633,-500.0,0.00016438,2]
[399810443,1766691045643,-500.0,0.00016438,2]
[399810444,1766691045653,-500.0,0.00016438,2]
[399810445,1766691045663,-678.69579589,0.00016438,2]
[399810446,1766691045672,-678.69579589,0.00016438,2]
[399810447,1766691045682,-678.69579589,0.00016438,2]
[399810448,1766691045692,-678.69579589,0.00016438,2]
[399810449,1766691045702,-678.69579589,0.00016438,2]
[399810450,1766691045711,-678.69579589,0.00016438,2]
[399810451,1766691045721,-678.69579589,0.00016438,2]
[399810452,1766691045731,-678.69579589,0.00016438,2]
[399810453,1766691045740,-678.69579589,0.00016438,2]
[399810454,1766691045750,-678.69579589,0.00016438,2]
[399810455,1766691045760,-678.69579589,0.00016438,2]
[399810456,1766691045770,-678.69579589,0.00016438,2]
[399810457,1766691045779,-678.69579589,0.00016438,2]
[399810458,1766691045789,-678.69579589,0.00016438,2]
[399810459,1766691045798,-678.69579589,0.00016438,2]
[399810460,1766691045808,-678.69579589,0.00016438,2]
[399810461,1766691045818,-678.69579589,0.00016438,2]
[399810462,1766691045827,-678.69579589,0.00016438,2]
[399810464,1766691045837,-678.69579589,0.00016438,2]
[399810465,1766691045846,-678.69579589,0.00016438,2]
[399810466,1766691045856,-678.69579589,0.00016438,2]
[399810467,1766691045866,-678.69579589,0.00016438,2]
[399810468,1766691045875,-678.69579589,0.00016438,2]
[399810469,1766691045885,-678.69579589,0.00016438,2]
[399810470,1766691045894,-678.69579589,0.00016438,2]
[399810471,1766691045904,-678.69579589,0.00016438,2]
[399810472,1766691045913,-678.69579589,0.00016438,2]
[399810473,1766691045923,-678.69579589,0.00016438,2]
[399810474,1766691045932,-678.69579589,0.00016438,2]
[399810475,1766691045942,-678.69579589,0.00016438,2]
[399810476,1766691045952,-678.69579589,0.00016438,2]
[399810477,1766691045961,-678.69579589,0.00016438,2]
[399810478,1766691045971,-678.69579589,0.00016438,2]
[399810479,1766691045981,-678.69579589,0.00016438,2]
[399810480,1766691045991,-678.69579589,0.00016438,2]
[399810481,1766691046002,-678.69579589,0.00016438,2]
[399810482,1766691046011,-678.69579589,0.00016438,2]
[399810483,1766691046021,-678.69579589,0.00016438,2]
[399810484,1766691046030,-678.69579589,0.00016438,2]
[399810485,1766691046039,-678.69579589,0.00016438,2]
[399810486,1766691046049,-678.69579589,0.00016438,2]
[399810487,1766691046059,-678.69579589,0.00016438,2]
[399810488,1766691046068,-678.69579589,0.00016438,2]
[399810489,1766691046078,-678.69579589,0.00016438,2]
[399810490,1766691046088,-678.69579589,0.00016438,2]
[399810491,1766691046098,-678.69579589,0.00016438,2]
[399810492,1766691046107,-678.69579589,0.00016438,2]
[399810493,1766691046116,-678.69579589,0.00016438,2]
[399810494,1766691046126,-678.69579589,0.00016438,2]
[399810495,1766691046135,-678.69579589,0.00016438,2]
[399810496,1766691046144,-678.69579589,0.00016438,2]
[399810497,1766691046154,-653.48709491,0.00016438,2]
[399810498,1766691046163,-653.48709491,0.00016438,2]
[399810499,1766691046173,-653.48709491,0.00016438,2]
[399810500,1766691046183,-653.48709491,0.00016438,2]
[399810501,1766691046193,-653.48709491,0.00016438,2]
[399810502,1766691046202,-653.48709491,0.00016438,2]
[399810503,1766691046211,-653.48709491,0.00016438,2]
[399810504,1766691046220,-653.48709491,0.00016438,2]
[399810505,1766691046230,-653.48709491,0.00016438,2]
[399810506,1766691046239,-653.48709491,0.00016438,2]
[399810507,1766691046249,-653.48709491,0.00016438,2]
[399810508,1766691046259,-653.48709491,0.00016438,2]
[399810509,1766691046269,-653.48709491,0.00016438,2]
[399810510,1766691046280,-653.48709491,0.00016438,2]
[399810511,1766691046289,-653.48709488,0.00016438,2]
[399810512,1766691046299,-15847.73,0.00016438,2]
[399810513,1766691046308,-800.0,0.00016438,2]
[399810514,1766691046318,-716.0,0.00016438,2]
[399810515,1766691046328,-809.0,0.00016438,2]
[399810516,1766691046338,-150.0,0.0001644,2]
[399810517,1766691046348,-163.38,0.00016441,2]
[399810518,1766691046358,-150.0,0.00016446,2]
[399810519,1766691046367,-150.0,0.0001645,2]
[399810520,1766691046378,-1197.0,0.00016455,2]
[399810523,1766691046388,-150.0,0.00016457,2]
[399810525,1766691046398,-150.0,0.00016464,2]
[399810526,1766691046408,-500.0,0.00016465,2]
[399810528,1766691046420,-150.0,0.00016467,2]
[399810531,1766691046431,-150.0,0.00016471,2]
[399810532,1766691046440,-150.0,0.00016477,2]
[399810534,1766691046450,-150.0,0.00016479,2]
[399810536,1766691046460,-500.0,0.00016493,2]
[399810538,1766691046469,-150.0,0.00016495,2]
[399810540,1766691046479,-150.0,0.00016496,2]
[399810542,1766691046489,-150.0,0.00016501,2]
[399810544,1766691046498,-150.0,0.00016501,2]
[399810546,1766691046508,-150.0,0.00016501,2]
[399810548,1766691046519,-41325.20904142,0.00016506,2]
[399810550,1766691046529,-583.07830005,0.00016506,2]
[399810553,1766691046539,-150.0,0.00016514,2]
[399810555,1766691046549,-500.0,0.0001652,2]
[399810556,1766691046559,-150.0,0.00016523,2]
[399810558,1766691046569,-150.0,0.00016523,2]
[399810559,1766691046579,-150.0,0.00016529,2]
[399810560,1766691046588,-150.0,0.00016531,2]
[399810561,1766691046598,-150.0,0.00016533,2]
[399810562,1766691046608,-150.0,0.00016533,2]
[399810563,1766691046618,-150.0,0.00016539,2]
[399810564,1766691046627,-150.0,0.00016545,2]
[399810565,1766691046636,-500.0,0.00016548,2]
[399810566,1766691046645,-150.0,0.00016562,2]
[399810567,1766691046655,-150.0,0.00016562,2]
[399810568,1766691046664,-150.0,0.00016562,2]
[399810569,1766691046674,-150.0,0.00016562,2]
[399810570,1766691046684,-150.0,0.00016567,2]
[399810571,1766691046693,-500.0,0.00016575,2]
[399810573,1766691046703,-150.0,0.00016584,2]
[399810574,1766691046712,-1197.0,0.00016586,2]
[399810575,1766691046722,-150.0,0.00016589,2]
[399810576,1766691046731,-150.0,0.0001659,2]
[399810577,1766691046740,-150.0,0.00016592,2]
[399810578,1766691046750,-150.0,0.00016594,2]
[399810579,1766691046759,-358.86034089,0.000166,2]
[399810580,1766691046769,-150.0,0.000166,2]
[399810581,1766691046779,-500.0,0.00016602,2]
[399810582,1766691046789,-150.0,0.00016609,2]
[399810583,1766691046798,-150.0,0.00016609,2]
[399810584,1766691046807,-150.0,0.00016611,2]
[399810585,1766691046817,-1178.96939853,0.00016612,2]
[399810586,1766691046827,-150.0,0.00016622,2]
[399810587,1766691046836,-150.0,0.00016627,2]
[399810588,1766691046846,-150.0,0.00016629,2]
[399810589,1766691046855,-500.0,0.0001663,2]
[399810590,1766691046864,-150.0,0.00016633,2]
[399810591,1766691046874,-150.0,0.00016647,2]
[399810592,1766691046885,-150.0,0.00016647,2]
[399810593,1766691046895,-150.0,0.00016647,2]
[399810594,1766691046905,-150.0,0.00016653,2]
[399810595,1766691046914,-150.0,0.00016655,2]
[399810596,1766691046924,-150.0,0.00016656,2]
[399810597,1766691046933,-500.0,0.00016657,2]
[399810598,1766691046942,-150.0,0.0001666,2]
[399810599,1766691046952,-10795.96324327,0.0001666,2]
[399810600,1766691046962,-150.0,0.00016673,2]
[399810601,1766691046972,-150.0,0.00016677,2]
[399810603,1766691046981,-150.0,0.00016677,2]
[399810604,1766691046991,-150.0,0.00016683,2]
[399810605,1766691047000,-218.80351721,0.00016685,2]
[399810606,1766691047010,-150.0,0.00016685,2]
[399810607,1766691047019,-150.0,0.00016692,2]
[399810608,1766691047029,-595.37131296,0.00016697,2]
[399810609,1766691047039,-150.0,0.000167,2]
[399810610,1766691047048,-1000.0,0.000167,2]
[399810611,1766691047058,-150.0,0.00016703,2]
[399810612,1766691047068,-150.0,0.00016703,2]
[399810613,1766691047077,-150.0,0.00016703,2]
[399810614,1766691047087,-1197.0,0.00016709,2]
[399810615,1766691047096,-150.0,0.00016712,2]
[399810616,1766691047106,-1220.37,0.00016712,2]
[399810617,1766691047115,-150.0,0.00016712,2]
[399810618,1766691047125,-150.0,0.00016712,2]
[399810619,1766691047135,-150.0,0.00016712,2]
[399810620,1766691047144,-150.0,0.00016712,2]
[399810621,1766691047154,-150.0,0.00016712,2]
[399810622,1766691047164,-150.0,0.00016712,2]
[399810623,1766691047174,-558.61,0.00016712,2]
[399810624,1766691047184,-554.23,0.00016712,2]
[399810625,1766691047198,-150.0,0.00016712,2]
[399810626,1766691047208,-150.0,0.00016712,2]
[399810627,1766691047217,-150.0,0.00016712,2]
[399810628,1766691047227,-554.23,0.00016712,2]
[399810629,1766691047236,-150.0,0.00016712,2]
[399810630,1766691047246,-554.23,0.00016712,2]
[399810631,1766691047255,-300.0,0.00016712,2]
[399810632,1766691047264,-150.0,0.00016712,2]
[399810633,1766691047274,-554.23,0.00016712,2]
[399810634,1766691047283,-255.36,0.00016712,2]
[399810635,1766691047292,-554.23,0.00016712,2]
[399810636,1766691047301,-554.23,0.00016712,2]
[399810637,1766691047311,-1220.37,0.00016712,2]
[399810638,1766691047320,-1220.37,0.00016712,2]
[399810639,1766691047329,-1220.37,0.00016712,2]
[399810640,1766691047339,-1220.37,0.00016712,2]
[399810641,1766691047349,-1220.37,0.00016712,2]
[399810642,1766691047358,-2439.96,0.00016712,2]
[399810643,1766691047367,-1214.33,0.00016712,2]
[399810644,1766691047377,-150.0,0.00016713,2]
[399810645,1766691047388,-150.0,0.00016718,2]
[399810646,1766691047398,-150.0,0.00016722,2]
[399810647,1766691047407,-300.0,0.00016724,2]
[399810648,1766691047419,-150.0,0.00016725,2]
[399810649,1766691047429,-300.0,0.00016727,2]
[399810650,1766691047439,-1000.0,0.00016731,2]
[399810651,1766691047449,-308.61264672,0.00016731,2]
[399810652,1766691047459,-500.0,0.00016731,2]
[399810653,1766691047470,-500.0,0.00016731,2]
[399810654,1766691047480,-559.28446362,0.00016731,2]
[399810655,1766691047490,-500.0,0.00016731,2]
[399810656,1766691047503,-598.60555363,0.00016731,2]
[399810657,1766691047512,-500.0,0.00016731,2]
[399810658,1766691047521,-500.0,0.00016731,2]
[399810659,1766691047531,-500.0,0.00016731,2]
[399810660,1766691047541,-500.0,0.00016731,2]
[399810661,1766691047550,-500.0,0.00016731,2]
[399810662,1766691047560,-500.0,0.00016731,2]
[399810663,1766691047569,-207.3850141,0.00016731,2]
[399810664,1766691047579,-500.0,0.00016731,2]
[399810665,1766691047590,-500.0,0.00016731,2]
[399810666,1766691047599,-500.0,0.00016731,2]
[399810667,1766691047608,-500.0,0.00016731,2]
[399810668,1766691047618,-500.0,0.00016731,2]
[399810669,1766691047628,-500.0,0.00016731,2]
[399810670,1766691047637,-150.0,0.00016744,2]
[399810671,1766691047647,-150.0,0.00016744,2]
[399810672,1766691047657,-150.0,0.00016744,2]
[399810673,1766691047667,-150.0,0.0001675,2]
[399810674,1766691047676,-150.0,0.00016755,2]
[399810675,1766691047686,-150.0,0.00016758,2]
[399810676,1766691047695,-150.0,0.0001676,2]
[399810677,1766691047705,-150.0,0.0001676,2]
[399810678,1766691047715,-150.0,0.00016763,2]
[399810679,1766691047724,-150.0,0.00016766,2]
[399810680,1766691047733,-150.0,0.00016774,2]
[399810681,1766691047743,-300.0,0.00016778,2]
[399810682,1766691047755,-150.0,0.00016788,2]
[399810683,1766691047764,-150.0,0.0001679,2]
[399810684,1766691047774,-150.0,0.00016798,2]
[399810685,1766691047789,-150.0,0.00016798,2]
[399810686,1766691047800,-1000.0,0.000168,2]
[399810687,1766691047809,-150.0,0.00016804,2]
[399810688,1766691047819,-150.0,0.00016807,2]
[399810689,1766691047829,-300.0,0.00016809,2]
[399810690,1766691047839,-150.0,0.0001681,2]
[399810691,1766691047849,-150.0,0.00016816,2]
[399810692,1766691047859,-188.55950753,0.00016822,2]
[399810695,1766691048106,-150.0,0.00016823,2]
[399810696,1766691048117,-926.45060488,0.0001683,2]
[399810697,1766691048127,-150.0,0.00016832,2]
[399810698,1766691048138,-150.0,0.00016832,2]
[399810699,1766691048148,-150.0,0.00016835,2]
[399810700,1766691048157,-231.0,0.00016837,2]
[399810701,1766691048168,-150.0,0.00016845,2]
[399810703,1766691048179,-150.0,0.00016845,2]
[399810704,1766691048189,-150.0,0.00016852,2]
[399810705,1766691048199,-150.0,0.00016854,2]
[399810706,1766691048209,-150.0,0.00016856,2]
[399810707,1766691048219,-200.0,0.00016863,2]
[399810708,1766691048229,-200.0,0.00016864,2]
[399810709,1766691048238,-200.0,0.00016864,2]
[399810710,1766691048248,-200.0,0.00016864,2]
[399810711,1766691048258,-200.0,0.00016864,2]
[399810712,1766691048268,-150.0,0.00016865,2]
[399810714,1766691048279,-150.0,0.00016873,2]
[399810715,1766691048288,-150.0,0.00016873,2]
[399810716,1766691048298,-25000.0,0.00016874,3]
[399810717,1766691048308,-1197.0,0.00016874,2]
[399810718,1766691048318,-150.0,0.00016876,2]
[399810719,1766691048328,-25000.0,0.00016882,3]
[399810720,1766691048338,-150.0,0.00016888,2]
[399810721,1766691048349,-25000.0,0.00016891,3]
[399810722,1766691048358,-150.0,0.00016892,2]
[399810723,1766691048368,-300.0,0.00016894,2]
[399810724,1766691048378,-150.0,0.00016895,2]
[399810725,1766691048389,-150.0,0.00016897,2]
[399810726,1766691048400,-150.0,0.00016898,2]
[399810727,1766691048410,-500.0,0.00016899,2]
[399810728,1766691048423,-10000.0,0.000169,2]
[399810729,1766691048433,-304.31974468,0.000169,2]
[399810730,1766691048443,-25000.0,0.000169,3]
[399810731,1766691048453,-170.28248417,0.000169,2]
[399810732,1766691048463,-5811.61444536,0.000169,2]
[399810733,1766691048472,-1926.43051864,0.000169,3]
[399810734,1766691048482,-351.42531684,0.000169,2]
[399810735,1766691048492,-17404.91153984,0.000169,2]
[399810736,1766691048502,-4210.01963503,0.000169,2]
[399810737,1766691048512,-9354.0,0.000169,2]
[399810739,1766691048522,-150.0,0.00016909,2]
[399810740,1766691048531,-150.0,0.0001692,2]
[399810741,1766691048541,-150.0,0.00016921,2]
[399810742,1766691048551,-150.0,0.00016926,2]
[399810743,1766691048561,-150.0,0.0001693,2]
[399810744,1766691048571,-1537.98162864,0.00016932,2]
[399810745,1766691048581,-300.0,0.00016934,2]
[399810746,1766691048591,-150.0,0.00016939,2]
[399810747,1766691048602,-150.0,0.00016942,2]
[399810748,1766691048612,-150.0,0.00016942,2]
[399810749,1766691048622,-150.0,0.00016954,2]
[399810750,1766691048632,-150.0,0.00016956,2]
[399810751,1766691048643,-3899.0,0.00016959,2]
[399810752,1766691048653,-150.0,0.00016964,2]
[399810753,1766691048663,-500.0,0.0001697,2]
[399810754,1766691048673,-500.0,0.0001697,2]
[399810755,1766691048683,-500.0,0.0001697,2]
[399810756,1766691048692,-500.0,0.0001697,2]
[399810757,1766691048703,-800.78551976,0.0001697,2]
[399810758,1766691048713,-500.0,0.00016973,2]
[399810759,1766691048723,-150.0,0.00016973,2]
[399810760,1766691048732,-505.30351694,0.00016983,2]
[399810761,1766691048742,-2000.0,0.00016985,2]
[399810762,1766691048752,-2000.0,0.00016985,2]
[399810764,1766691048762,-2000.0,0.00016985,2]
[399810765,1766691048772,-2000.0,0.00016985,2]
[399810766,1766691048782,-2000.0,0.00016985,2]
[399810767,1766691048792,-2000.0,0.00016985,2]
[399810768,1766691048801,-1000.0,0.00016985,2]
[399810769,1766691048811,-1000.0,0.00016985,2]
[399810770,1766691048820,-1000.0,0.00016985,2]
[399810771,1766691048830,-1000.0,0.00016986,2]
[399810772,1766691048839,-1000.0,0.00016986,2]
[399810773,1766691048849,-1000.0,0.00016986,2]
[399810774,1766691048858,-916.272,0.00016986,2]
[399810775,1766691048868,-1000.0,0.00016986,2]
[399810776,1766691048877,-1000.0,0.00016986,2]
[399810777,1766691048887,-1000.0,0.00016986,2]
[399810778,1766691048897,-1000.0,0.00016986,2]
[399810779,1766691048906,-1000.0,0.00016986,2]
[399810780,1766691048916,-1000.0,0.00016986,2]
[399810781,1766691048926,-1000.0,0.00016986,2]
[399810782,1766691048935,-1000.0,0.00016986,2]
[399810783,1766691048944,-1000.0,0.00016986,2]
[399810784,1766691048954,-1000.0,0.00016986,2]
[399810785,1766691048964,-1000.0,0.00016986,2]
[399810786,1766691048974,-1000.0,0.00016986,2]
[399810787,1766691048983,-1000.0,0.00016986,2]
[399810789,1766691048993,-347.511,0.00016986,2]
[399810790,1766691049004,-1537.98162864,0.00016986,2]
[399810791,1766691049014,-199.93327437,0.00016986,2]
[399810792,1766691049023,-159.80056787,0.00016986,2]
[399810793,1766691049033,-254.60367392,0.00016986,2]
[399810794,1766691049043,-298.55759469,0.00016986,2]
[399810795,1766691049053,-250.03401256,0.00016986,2]
[399810796,1766691049063,-221.88950027,0.00016986,2]
[399810797,1766691049073,-171.10828189,0.00016986,2]
[399810798,1766691049083,-152.51878702,0.00016986,2]
[399810799,1766691049093,-199.77046782,0.00016986,2]
[399810800,1766691049103,-270.36367615,0.00016986,2]
[399810801,1766691049113,-284.4666085,0.00016986,2]
[399810802,1766691049123,-176.41435158,0.00016986,2]
[399810803,1766691049133,-195.8030936,0.00016986,2]
[399810804,1766691049143,-245.69368063,0.00016986,2]
[399810805,1766691049153,-1000.0,0.00016989,2]
[399810806,1766691049163,-1364.59530703,0.0001699,2]
[399810807,1766691049172,-1364.59530703,0.0001699,2]
[399810808,1766691049182,-2184.2999378,0.00016998,2]
[399810809,1766691049193,-2810.0591577,0.00016998,2]
[399810810,1766691049202,-1317.85,0.00016998,2]
[399810811,1766691049212,-1317.85,0.00016998,2]
[399810812,1766691049222,-1317.85,0.00016998,2]
[399810813,1766691049233,-1060.87558749,0.00016999,5]
[399810815,1766691049243,-28011.0297797,0.00016999,2]
[399810816,1766691049253,-1648.6726673,0.00016999,2]
[399810817,1766691049264,-3263.1083457,0.00016999,2]
[399810818,1766691049274,-625467.8575,0.00016999,2]
[399810819,1766691049283,-134127.3193544,0.00016999,2]
[399810820,1766691049293,-300.0,0.00016999,2]
[399810821,1766691049302,-500.0,0.00016999,2]
[399810822,1766691049312,-500.0,0.00016999,2]
[399810823,1766691049321,-500.0,0.00016999,2]
[399810824,1766691049331,-500.0,0.00016999,2]
[399810825,1766691049340,-500.0,0.00016999,2]
[399810826,1766691049351,-500.0,0.00016999,2]
[399810828,1766691049360,-500.0,0.00016999,2]
[399810829,1766691049370,-500.0,0.00016999,2]
[399810830,1766691049380,-500.0,0.00016999,2]
[399810831,1766691049389,-500.0,0.00016999,2]
[399810832,1766691049399,-500.0,0.00016999,2]
[399810833,1766691049410,-500.0,0.00016999,2]
[399810834,1766691049422,-500.0,0.00016999,2]
[399810835,1766691049432,-500.0,0.00016999,2]
[399810836,1766691049442,-500.0,0.00016999,2]
[399810837,1766691049452,-590.60167877,0.00016999,2]
[399810838,1766691049463,-300.0,0.00016999,2]
[399810839,1766691049474,-248.32268847,0.00016999,2]
[399810840,1766691049484,-300.0,0.00016999,2]
[399810841,1766691049495,-666.0,0.00016999,2]
[399810842,1766691049505,-1317.85,0.00016999,2]
[399810843,1766691049516,-1317.85,0.00016999,2]
[399810844,1766691049526,-1317.85,0.00016999,2]
[399810845,1766691049536,-1317.85,0.00016999,2]
[399810846,1766691049546,-1317.85,0.00016999,2]
[399810847,1766691049556,-1317.85,0.00016999,2]
[399810848,1766691049566,-1317.85,0.00016999,2]
[399810849,1766691049576,-1317.85,0.00016999,2]
[399810850,1766691049587,-1317.85,0.00016999,2]
[399810851,1766691049597,-1317.85,0.00016999,2]
[399810852,1766691049607,-1317.85,0.00016999,2]
[399810853,1766691049617,-1317.85,0.00016999,2]
[399810854,1766691049627,-1317.85,0.00016999,2]
[399810855,1766691049636,-1317.85,0.00016999,2]
[399810856,1766691049646,-1317.85,0.00016999,2]
[399810857,1766691049656,-1317.88545808,0.00016999,2]
[399810858,1766691049666,-3165092.47294882,0.00017,2]
[399810860,1766691050734,-345.5261616,0.00017,2]
[399810861,1766691050754,-10873.6298,0.00017,2]
[399810862,1766691050765,-1089.48107087,0.00017,2]
[399810863,1766691050823,-500.0,0.00017,2]
[399810864,1766691050834,-604.792551,0.00017,2]
[399810865,1766691050848,-331.8895825,0.00017,2]
[399810866,1766691051809,-362.04957225,0.00014532,2]
[399810867,1766691051821,-1178.96939851,0.00016756,2]
[399810868,1766691051832,-407538.13958941,0.00017,2]
[399810869,1766691051855,-92379.64019877,0.00017,2]
[399810870,1766691051867,-17003.70028845,0.00017,2]
[399810871,1766691051880,-1720.0,0.00017,2]
[399810901,1766691152912,240.0,0.00032713,120]
[399810905,1766691158286,399.99,0.00032876,120]
[399810914,1766691180890,217.19,0.00031507,120]
[399810916,1766691186883,160.20652096,0.000119,2]
[399810923,1766691207635,500.0,0.000119,2]
[399810938,1766691252109,155.40870097,0.00032876,120]
[399810955,1766691328078,500.0,0.000119,2]
[399810960,1766691427148,500.0,0.000119,2]
[399810961,1766691452307,500.0,0.000119,2]
[399810963,1766691552549,175.22,0.00011273,2]
[399810964,1766691873205,164.85729192,0.00032876,120]
[399810966,1766692086669,500.0,0.000119,2]